bitfinex/quotes_ETHUSD_20240701
["timestamp","ask_amount","ask_price","bid_price","bid_amount"]
[1719799348949,6.7887,3518.0,3517.2,2.84314]
[1719799349146,0.67887,3517.9,3517.0,2.84332]
[1719799350094,0.67887,3517.9,3516.8,4.85745]
[1719799350596,0.67887,3517.9,3517.1,2.84324]
[1719799351166,0.67887,3517.9,3517.2,2.8431]
[1719799351490,6.7887,3518.0,3517.2,2.8431]
[1719799352062,6.7887,3518.0,3517.3,2.84308]
[1719799352384,6.7887,3518.0,3517.4,2.84299]
[1719799352954,6.7887,3518.0,3517.5,2.84291]
[1719799353150,6.7887,3518.0,3517.3,2.84303]
[1719799353391,6.7887,3518.0,3517.2,2.84315]
[1719799353599,6.7887,3518.0,3517.3,2.84305]
[1719799354752,7.46757,3518.0,3517.0,2.84332]
[1719799354958,7.46757,3518.0,3516.9,2.8434]
[1719799355272,10.31009,3518.0,3516.9,2.8434]
[1719799355483,10.31009,3518.0,3516.7,2.84357]
[1719799355484,2.84266,3517.9,3516.7,2.84357]
[1719799355808,1.315275,3517.8,3516.7,2.84357]
[1719799356337,2.014,3517.2,3515.1,0.88354822]
[1719799356596,2.014,3517.2,3514.7,7.2535]
[1719799356597,2.84335,3517.0,3515.4,4.8586]
[1719799356800,6.9271,3517.1,3515.8,2.84429]
[1719799356955,2.8434,3517.0,3515.5,2.84454]
[1719799357163,6.9271,3517.1,3515.6,2.84443]
[1719799357164,2.84343,3516.9,3515.6,2.84443]
[1719799357392,2.84349,3516.8,3515.5,2.84452]
[1719799358474,2.84359,3516.7,3515.5,2.84452]
[1719799360231,2.84345,3516.9,3515.6,2.90133305]
[1719799360381,2.84345,3516.9,3515.7,2.84438]
[1719799360582,1.3590917,3516.8,3515.7,2.84438]
[1719799361081,1.3590917,3516.8,3515.8,0.05688291]
[1719799361323,1.3590917,3516.8,3515.8,2.90118291]
[1719799361979,1.3590917,3516.8,3515.6,2.90129963]
[1719799362183,4.2026017,3516.8,3515.6,2.90129963]
[1719799362410,0.70459417,3516.7,3515.6,2.90129963]
[1719799362721,0.70459417,3516.7,3515.7,2.84435]
[1719799363102,2.84344,3516.9,3515.7,2.84435]
[1719799363305,2.84344,3516.9,3515.8,0.05687962]
[1719799363521,2.84366,3516.6,3515.4,2.84462]
[1719799363690,6.9213,3516.5,3515.2,2.84476]
[1719799363893,0.69213,3516.4,3515.1,2.84486]
[1719799364224,0.69213,3516.4,3515.0,3.152963]
[1719799364422,2.84399,3516.2,3515.0,1.138963]
[1719799364725,0.353612,3516.1,3515.0,3.983883]
[1719799364926,3.197692,3516.1,3515.0,1.138963]
[1719799365092,3.197692,3516.1,3514.8,2.84505]
[1719799365093,2.84418,3516.0,3514.8,2.84505]
[1719799365283,2.84418,3516.0,3514.7,2.81]
[1719799365480,2.84418,3516.0,3514.7,3.949064]
[1719799365481,7.7643792,3515.9,3514.7,3.949064]
[1719799365685,2.84431,3515.8,3514.6,2.84527]
[1719799366224,2.84439,3515.7,3514.6,1.139074]
[1719799366408,1.34529892,3515.6,3514.5,2.90221563]
[1719799366723,1.34529892,3515.6,3514.6,2.84526]
[1719799367685,1.34529892,3515.6,3514.6,0.05689756]
[1719799368202,1.34529892,3515.6,3514.8,2.84509]
[1719799368528,1.34529892,3515.6,3514.8,2.84505]
[1719799368728,7.7643792,3515.9,3514.9,2.845]
[1719799369285,7.7643792,3515.9,3514.9,0.05689564]
[1719799369693,7.7643792,3515.9,3515.3,2.84469]
[1719799370020,0.69213,3516.4,3515.3,0.05689167]
[1719799370021,7.85873,3516.4,3515.3,0.05689167]
[1719799370193,7.1666,3516.4,3515.3,2.84463]
[1719799370528,7.1666,3516.4,3515.4,2.84456]
[1719799370736,7.1666,3516.4,3515.5,2.84451]
[1719799371030,8.167623,3516.4,3515.6,2.84445]
[1719799371895,8.167623,3516.4,3515.8,2.84428]
[1719799372095,7.1666,3516.4,3515.8,2.84428]
[1719799372297,7.1666,3516.4,3515.4,0.05688442]
[1719799372509,4.85702,3517.4,3515.4,0.05688442]
[1719799372510,2.84312,3517.3,3515.4,0.05688442]
[1719799372740,7.3165,3517.2,3516.1,2.84403]
[1719799372943,1.501664,3517.1,3516.2,2.84396]
[1719799373116,1.501664,3517.1,3516.0,2.8441]
[1719799373315,1.501664,3517.1,3516.1,2.84404]
[1719799375261,4.344924,3517.1,3515.9,2.8442]
[1719799375557,1.1661424,3517.0,3516.0,2.84413]
[1719799376721,1.1661424,3517.0,3516.1,2.84405]
[1719799377124,1.1661424,3517.0,3516.2,2.84392]
[1719799377536,7.3165,3517.2,3516.4,2.8438]
[1719799377740,7.3165,3517.2,3515.7,5.014]
[1719799377950,6.8533,3518.2,3517.1,2.84323]
[1719799378122,6.8533,3518.2,3517.2,2.84316]
[1719799379983,6.8533,3518.2,3517.3,2.84307]
[1719799380184,0.68533,3518.1,3517.2,2.84316]
[1719799380351,6.8533,3518.2,3517.3,2.84304]
[1719799380562,6.8533,3518.2,3517.4,2.84294]
[1719799381075,6.8533,3518.2,3517.5,2.84292]
[1719799381636,6.8533,3518.2,3517.7,2.84276]
[1719799382153,7.4576,3518.9,3517.7,2.84276]
[1719799382480,7.4576,3518.9,3517.3,2.07085809]
[1719799382481,1.029932,3518.8,3518.0,2.84248]
[1719799382685,1.029932,3518.8,3517.3,9.334]
[1719799383397,2.84214,3518.5,3517.3,7.32]
[1719799383559,7.1007,3518.4,3517.3,7.32]
[1719799383755,0.71007,3518.3,3517.4,2.843]
[1719799384944,0.71007,3518.3,3517.5,2.84291]
[1719799385150,0.71007,3518.3,3517.8,2.84268]
[1719799387557,0.71007,3518.3,3517.9,2.84259]
[1719799388553,7.1007,3518.4,3518.0,2.84249]
[1719799389081,9.94292,3518.4,3517.3,10.16306]
[1719799389307,7.1007,3518.4,3517.3,7.32]
[1719799389964,0.994274,3518.3,3517.3,7.32]
[1719799390692,2.8426,3517.9,3517.3,7.32]
[1719799390859,2.84237,3518.2,3516.8,2.84349]
[1719799390860,2.84249,3518.1,3516.8,2.84349]
[1719799391285,3.836594,3518.3,3517.0,2.84327]
[1719799391488,3.836594,3518.3,3517.1,2.84324]
[1719799391795,1.3779504,3518.2,3517.1,2.84324]
[1719799391997,1.3779504,3518.2,3516.9,2.84341]
[1719799392509,4.2203504,3518.2,3516.9,2.84341]
[1719799393915,2.84256,3518.0,3516.7,2.8435]
[1719799394127,1.43180604,3517.9,3516.7,2.8435]
[1719799394413,1.43180604,3517.9,3516.8,2.84348]
[1719799394931,1.43180604,3517.9,3516.9,2.84338]
[1719799395910,4.27447604,3517.9,3516.6,2.84359]
[1719799396219,2.84276,3517.7,3516.6,2.84359]
[1719799396535,0.4274566,3517.6,3516.5,2.84371]
[1719799396873,0.4274566,3517.6,3516.6,2.84363]
[1719799397279,0.4274566,3517.6,3516.3,4.85782]
[1719799397280,3.2703166,3517.6,3516.4,2.8438]
[1719799397496,0.32703166,3517.5,3516.3,4.85782]
[1719799398003,0.32703166,3517.5,3516.5,2.84372]
[1719799398731,0.32703166,3517.5,3516.6,2.84363]
[1719799400291,0.32703166,3517.5,3516.7,2.84352]
[1719799400487,0.4274566,3517.6,3516.7,2.84352]
[1719799401237,0.4274566,3517.6,3516.6,2.84363]
[1719799402030,0.4274566,3517.6,3516.4,2.84381]
[1719799402236,0.4274566,3517.6,3516.7,2.84355]
[1719799402391,0.4274566,3517.6,3516.5,0.05686813]
[1719799402727,1.43180604,3517.9,3516.9,2.8434]
[1719799403712,4.27440604,3517.9,3516.7,2.84356]
[1719799403917,2.84268,3517.8,3516.7,2.84356]
[1719799405690,2.84278,3517.7,3516.6,2.84362]
[1719799405893,2.84278,3517.7,3516.5,2.84371]
[1719799405894,4.27441604,3517.9,3516.7,2.84356]
[1719799406345,4.27441604,3517.9,3516.5,2.84371]
[1719799406522,4.27441604,3517.9,3516.8,2.84348]
[1719799407353,1.4371966,3517.8,3516.8,2.84348]
[1719799408245,4.2798866,3517.8,3516.8,2.84348]
[1719799408559,1.4371966,3517.8,3516.9,2.8434]
[1719799409115,1.4371966,3517.8,3516.6,2.84365]
[1719799409310,0.42798166,3517.7,3516.7,0.05686634]
[1719799409512,7.2551,3518.1,3517.1,2.014]
[1719799409711,7.4006,3519.0,3518.1,2.84237]
[1719799409962,7.4006,3519.0,3517.6,2.84284]
[1719799410105,7.4006,3519.0,3518.1,2.84244]
[1719799410306,7.4006,3519.0,3518.2,2.84235]
[1719799410507,0.74006,3518.9,3518.2,2.84235]
[1719799410955,0.74006,3518.9,3518.3,2.8422]
[1719799411154,0.74006,3518.9,3518.4,2.84218]
[1719799411507,0.74006,3518.9,3518.5,2.84211]
[1719799414350,0.74006,3518.9,3518.3,2.84227]
[1719799414573,0.74006,3518.9,3518.1,2.84242]
[1719799414712,7.4006,3519.0,3518.2,2.84234]
[1719799414713,0.814066,3518.8,3518.2,2.84234]
[1719799415255,0.814066,3518.8,3518.4,2.84219]
[1719799416347,0.814066,3518.8,3518.2,2.84232]
[1719799416543,0.814066,3518.8,3517.9,2.84258]
[1719799416759,0.8214666,3518.7,3517.3,2.014]
[1719799417061,7.4006,3519.0,3518.3,2.84226]
[1719799417265,7.4006,3519.0,3518.1,2.84239]
[1719799417922,7.4006,3519.0,3518.0,2.84251]
[1719799418119,7.4006,3519.0,3518.1,2.8424]
[1719799419350,7.4006,3519.0,3518.2,2.8423]
[1719799419669,2.84082,3520.1,3518.7,2.84189]
[1719799419968,10.27711,3520.0,3518.9,2.84179]
[1719799420174,7.4362,3520.0,3518.5,2.014]
[1719799420465,8.17982,3520.0,3519.3,2.84147]
[1719799420827,8.17982,3520.0,3519.4,2.84133]
[1719799421056,7.4362,3520.0,3519.5,2.84128]
[1719799421223,7.4362,3520.0,3519.6,2.84122]
[1719799421661,0.359042,3520.4,3519.8,2.84106]
[1719799422249,0.359042,3520.4,3519.6,2.84122]
[1719799422454,0.7530242,3520.3,3519.2,0.05682028]
[1719799422694,0.7530242,3520.3,3519.2,2.84153]
[1719799423087,0.7530242,3520.3,3518.6,12.2022]
[1719799423088,3.5936942,3520.3,3518.8,2.84179]
[1719799423255,3.5936942,3520.3,3519.1,2.84161]
[1719799423580,3.5936942,3520.3,3518.5,2.84205]
[1719799423581,6.7991,3520.1,3518.5,2.84205]
[1719799423782,6.7991,3520.1,3518.2,3.0]
[1719799423972,6.7991,3519.9,3518.2,3.0]
[1719799424159,4.7248,3519.5,3517.8,2.8426]
[1719799424503,4.7248,3519.5,3517.6,7.2894]
[1719799424504,2.84148,3519.3,3518.1,2.84243]
[1719799424810,0.47248,3519.4,3518.2,2.84235]
[1719799424811,3.31389,3519.4,3518.2,2.84235]
[1719799425167,2.8415,3519.3,3518.1,2.84242]
[1719799426392,2.84194,3518.8,3517.6,2.84279]
[1719799426563,5.277494,3518.7,3517.5,2.84285]
[1719799426761,4.9933,3518.7,3517.5,2.84285]
[1719799427821,7.83526,3518.7,3517.5,2.84285]
[1719799428314,4.9933,3518.7,3517.7,2.84272]
[1719799428479,4.9933,3518.7,3517.5,2.84292]
[1719799428677,0.783519,3518.6,3517.5,2.84292]
[1719799428970,3.625619,3518.6,3517.3,2.84307]
[1719799429220,2.84226,3518.4,3517.1,2.84318]
[1719799429741,2.84226,3518.4,3517.2,2.84316]
[1719799430024,0.6467819,3518.3,3517.2,2.84316]
[1719799430220,2.8425,3518.1,3516.9,2.84341]
[1719799430384,2.8426,3517.9,3516.7,10.16353]
[1719799430584,0.75961,3517.8,3516.7,10.16353]
[1719799430819,0.75961,3517.8,3516.7,2.84353]
[1719799431130,0.75961,3517.8,3516.3,14.484]
[1719799431416,0.75961,3517.8,3517.1,2.84318]
[1719799431831,0.75961,3517.8,3516.9,2.8434]
[1719799431986,0.551311,3517.7,3516.9,2.8434]
[1719799437056,5.1083,3518.4,3518.0,2.8425]
[1719799437256,5.1083,3519.1,3517.6,2.014]
[1719799437412,5.1083,3519.1,3517.8,2.84268]
[1719799437611,0.794989,3519.0,3518.0,2.84245]
[1719799437915,0.794989,3519.0,3518.1,2.84243]
[1719799439102,0.794989,3519.0,3517.1,3.0]
[1719799439323,2.84204,3518.6,3517.3,3.0]
[1719799439542,2.84204,3518.6,3517.3,2.84308]
[1719799439543,4.9206,3518.5,3517.3,2.84308]
[1719799439844,7.76272,3518.5,3517.3,2.84308]
[1719799440205,4.9206,3518.5,3517.1,2.84324]
[1719799440561,2.014,3518.8,3517.0,2.84332]
[1719799440562,2.8425,3518.1,3517.0,2.84332]
[1719799440851,7.7629,3518.3,3517.0,2.84332]
[1719799441005,1.060517,3518.2,3516.9,0.05686111]
[1719799441203,4.9206,3518.3,3517.0,2.84326]
[1719799441459,4.9206,3518.3,3517.1,0.05686111]
[1719799441623,4.9206,3518.3,3517.6,2.8428]
[1719799442311,4.9206,3518.3,3517.8,2.84265]
[1719799442532,4.9206,3518.3,3517.6,2.84282]
[1719799442821,4.91832553,3518.3,3517.6,2.84282]
[1719799444367,5.41015808,3518.3,3517.6,2.84282]
[1719799446574,2.84243,3518.2,3517.1,7.32]
[1719799446929,2.84253,3518.0,3517.1,7.32]
[1719799447633,4.8109,3517.9,3516.4,7.32]
[1719799448333,4.8109,3517.7,3516.4,7.32]
[1719799448669,3.0,3517.6,3516.4,7.32]
[1719799448871,3.0,3517.6,3516.4,7.462]
[1719799449027,3.62408,3517.5,3516.4,7.462]
[1719799449227,0.78109,3517.5,3516.4,10.30574]
[1719799449670,3.0,3517.6,3516.4,7.462]
[1719799449993,4.8109,3517.7,3517.4,2.84294]
[1719799450126,4.8109,3518.3,3517.4,2.84294]
[1719799450331,4.8109,3518.3,3517.5,2.84291]
[1719799450530,4.8109,3518.3,3517.6,2.84283]
[1719799450837,4.8109,3518.3,3517.4,2.84298]
[1719799451156,4.8109,3518.3,3517.6,2.84281]
[1719799451568,4.8109,3518.3,3517.4,2.843]
[1719799451782,2.84159,3519.2,3517.9,2.84259]
[1719799451941,2.84174,3519.0,3517.8,2.84265]
[1719799452342,5.0428,3519.1,3517.9,2.8426]
[1719799452892,5.0428,3519.1,3517.6,10.16277]
[1719799453088,5.0428,3519.1,3518.0,2.84251]
[1719799453456,4.8079,3519.8,3518.9,2.84172]
[1719799453656,4.8079,3519.8,3518.7,0.05683306]
[1719799453856,4.8079,3519.8,3518.3,7.32]
[1719799454106,2.84134,3519.5,3518.3,7.32]
[1719799454853,7.64899,3519.8,3517.4,8.52293]
[1719799454854,4.3329,3518.6,3517.8,7.32]
[1719799455059,4.3329,3518.6,3517.2,22.63316]
[1719799455060,2.8422,3518.4,3517.2,22.63316]
[1719799455285,2.84228,3518.3,3517.2,19.79]
[1719799455806,0.717486,3518.5,3517.7,2.84272]
[1719799456372,4.3329,3518.6,3518.0,2.8425]
[1719799456701,4.3329,3518.6,3517.5,2.84291]
[1719799457200,2.84221,3518.4,3517.2,22.63316]
[1719799457408,7.17495,3518.6,3517.3,2.84308]
[1719799458127,7.17495,3518.6,3517.2,22.63316]
[1719799458128,7.17495,3518.6,3517.2,19.79]
[1719799458400,2.8422,3518.4,3517.2,19.79]
[1719799458609,0.717495,3518.5,3517.2,19.79]
[1719799458610,2.84228,3518.3,3517.2,19.79]
[1719799459111,3.0,3518.2,3517.2,19.79]
[1719799460093,3.0,3518.2,3517.0,5.68664]
[1719799460260,3.0,3518.2,3517.0,2.84326]
[1719799460602,0.584228,3518.1,3517.2,2.84315]
[1719799460918,4.3329,3518.6,3516.9,0.05686268]
[1719799461118,4.4609,3519.2,3518.4,2.84219]
[1719799461261,4.4609,3519.2,3518.5,2.84211]
[1719799461605,4.4609,3519.2,3518.2,0.05684006]
[1719799461606,4.4609,3519.2,3518.3,2.84225]
[1719799461954,4.4609,3519.2,3518.4,2.84219]
[1719799462157,4.4609,3519.2,3518.6,2.84203]
[1719799462623,4.4609,3519.2,3517.8,7.32]
[1719799462935,4.90699,3519.2,3517.8,7.32]
[1719799463060,4.90699,3519.2,3518.0,2.84249]
[1719799463261,4.90699,3519.2,3517.8,7.32]
[1719799463460,4.90699,3519.2,3518.2,2.84234]
[1719799463689,0.490699,3519.1,3518.2,2.84234]
[1719799464202,0.490699,3519.1,3517.8,7.32]
[1719799464203,2.84171,3519.0,3517.8,10.16268]
[1719799464703,0.490699,3519.1,3517.9,2.84257]
[1719799464904,3.490699,3519.1,3517.9,2.84257]
[1719799465065,1.0793149,3519.0,3517.9,2.84257]
[1719799465267,2.8421,3518.6,3517.8,7.32]
[1719799465482,3.0,3518.5,3517.8,7.32]
[1719799466001,3.0,3518.8,3517.8,7.32]
[1719799466208,5.3277,3518.5,3516.4,0.142]
[1719799466420,7.4208,3517.3,3516.4,0.142]
[1719799466612,2.84339,3517.0,3516.4,0.142]
[1719799467392,2.84361,3516.7,3516.4,0.142]
[1719799467591,7.5777,3517.3,3516.4,0.142]
[1719799467592,2.84366,3516.6,3516.4,0.142]
[1719799468594,7.03103,3516.5,3516.4,0.142]
[1719799468800,7.734133,3516.5,3516.4,0.142]
[1719799469006,10.734133,3516.5,3516.4,0.142]
[1719799469209,7.890403,3516.5,3516.4,0.142]
[1719799469409,13.577863,3516.5,3516.4,0.142]
[1719799469820,18.756456,3516.5,3516.4,0.142]
[1719799470386,16.407393,3516.5,3516.4,0.142]
[1719799470589,16.007393,3516.5,3516.4,0.142]
[1719799471483,16.557393,3516.5,3516.4,0.142]
[1719799471689,2.84431,3515.8,3515.1,7.32]
[1719799471890,0.284431,3515.7,3514.6,2.84525]
[1719799472106,3.284431,3515.7,3514.6,2.84525]
[1719799473211,6.128831,3515.7,3514.5,2.84532]
[1719799473657,2.84464,3515.4,3514.4,7.32]
[1719799473950,5.8447,3515.3,3514.4,7.32]
[1719799474150,2.8448,3515.2,3514.4,7.32]
[1719799474312,3.0,3515.3,3514.4,7.32]
[1719799474513,4.0589031,3515.5,3514.4,7.32]
[1719799474746,2.8447,3515.3,3514.4,7.32]
[1719799474914,3.69036031,3515.2,3514.4,7.32]
[1719799475543,2.84489,3515.1,3514.4,7.32]
[1719799476053,2.84489,3515.1,3513.6,2.84607]
[1719799476054,2.84503,3514.9,3513.6,10.16607]
[1719799476271,2.8449,3515.1,3513.8,2.84588]
[1719799476561,0.63800503,3515.0,3513.8,2.84588]
[1719799478071,4.4602,3515.6,3513.8,2.84588]
[1719799478276,0.55,3515.5,3513.8,2.84588]
[1719799478747,2.84471,3515.3,3513.9,2.84583]
[1719799478945,2.84486,3515.2,3513.9,2.84583]
[1719799479147,3.413827,3515.1,3513.9,2.84583]
[1719799479773,2.84497,3515.0,3513.7,5.69193]
[1719799480073,0.568957,3515.1,3513.9,2.84582]
[1719799480234,3.0,3515.2,3513.9,2.84582]
[1719799480668,2.84489,3515.1,3513.9,2.84582]
[1719799481848,2.84489,3515.1,3514.0,2.84575]
[1719799482974,5.84479,3515.2,3514.1,2.84565]
[1719799483180,3.0,3515.5,3514.2,2.84559]
[1719799483479,0.8139181,3515.4,3514.5,2.84534]
[1719799483890,0.8139181,3515.4,3513.9,0.05691002]
[1719799484041,4.5073,3516.1,3515.0,2.84488]
[1719799484345,4.5073,3516.1,3515.1,2.84481]
[1719799485093,4.5073,3516.1,3515.1,2.84485]
[1719799485395,2.84415,3516.0,3514.8,2.8451]
[1719799485612,2.8443,3515.8,3514.6,2.84523]
[1719799485783,3.58443,3515.7,3514.6,2.84523]
[1719799486869,3.58443,3515.7,3514.7,2.84519]
[1719799487284,0.58443,3515.7,3514.9,2.845]
[1719799487485,0.58443,3515.7,3514.8,2.84508]
[1719799487689,0.358443,3515.6,3514.8,2.84508]
[1719799488092,0.358443,3515.6,3514.9,2.84502]
[1719799488300,0.358443,3515.6,3514.7,2.84516]
[1719799488501,3.0,3516.0,3514.7,2.84516]
[1719799488912,4.5073,3516.1,3515.2,2.84476]
[1719799489083,4.5073,3516.1,3514.4,2.84538]
[1719799489084,7.17114,3516.7,3515.5,2.84446]
[1719799489497,4.3275,3516.7,3515.6,2.84444]
[1719799489696,0.717114,3516.6,3515.4,2.84461]
[1719799490112,0.717114,3516.6,3515.7,2.84437]
[1719799490417,0.717114,3516.6,3515.5,2.8445]
[1719799490621,0.717114,3516.6,3515.6,2.84444]
[1719799490811,0.7888194,3516.5,3515.6,2.84444]
[1719799497151,0.7888194,3516.5,3515.7,2.84438]
[1719799498739,0.7888194,3516.5,3515.6,2.84445]
[1719799499103,4.8984,3516.4,3514.8,5.8451]
[1719799499303,4.8984,3516.4,3515.0,2.84491]
[1719799499304,2.84412,3516.1,3515.0,2.84491]
[1719799500614,5.8439,3516.3,3515.0,2.84491]
[1719799500944,2.84407,3516.1,3515.0,2.84491]
[1719799501255,0.868797,3516.0,3515.0,2.84491]
[1719799501434,3.712947,3516.0,3514.8,2.84511]
[1719799501638,3.712947,3516.0,3514.3,19.88815]
[1719799501639,3.712947,3516.0,3514.9,2.84502]
[1719799502358,2.84433,3515.8,3514.8,2.84511]
[1719799502509,0.6557277,3515.7,3514.8,2.84511]
[1719799502908,0.6557277,3515.7,3514.9,2.84502]
[1719799503136,2.84427,3515.9,3514.8,2.8451]
[1719799504110,2.8443,3515.8,3514.8,2.8451]
[1719799504324,2.84485,3515.2,3514.7,7.32]
[1719799504638,2.84456,3515.5,3514.7,7.32]
[1719799504835,3.0,3515.6,3514.7,7.32]
[1719799505045,4.017783,3515.6,3514.7,7.32]
[1719799505361,1.017783,3515.6,3514.9,2.84502]
[1719799505542,4.3336,3515.7,3514.9,2.84502]
[1719799505719,4.3336,3515.7,3514.7,10.16515]
[1719799506427,7.17799,3515.7,3514.7,7.32]
[1719799506747,2.84479,3515.2,3514.7,7.32]
[1719799507323,2.84462,3515.4,3514.7,7.32]
[1719799507628,0.568908,3515.3,3514.7,7.32]
[1719799507818,0.568908,3515.3,3514.2,2.84554]
[1719799508436,0.568908,3515.3,3514.0,10.16574]
[1719799508437,2.84484,3515.2,3514.0,10.16574]
[1719799508642,2.84484,3515.2,3514.1,2.84567]
[1719799509180,2.81684,3515.2,3514.1,2.84567]
[1719799509359,0.6230378,3515.1,3514.0,7.32]
[1719799509566,2.84466,3515.4,3514.0,7.32]
[1719799509887,7.3336,3515.7,3514.8,2.8451]
[1719799510028,4.3336,3515.7,3514.8,2.8451]
[1719799510424,4.3336,3515.7,3514.6,2.84527]
[1719799510630,5.051392,3515.7,3514.6,2.84527]
[1719799510877,5.051392,3515.7,3514.9,2.84501]
[1719799511164,4.3148,3516.3,3515.1,2.84485]
[1719799511667,4.3148,3516.3,3515.4,2.84462]
[1719799511973,4.3148,3516.3,3514.6,7.37007]
[1719799511974,4.3148,3516.3,3515.5,2.84453]
[1719799512266,5.030646,3516.3,3515.5,2.84453]
[1719799512457,3.0,3516.2,3515.5,2.84453]
[1719799512774,3.0,3516.2,3515.3,2.84467]
[1719799512924,3.0,3516.2,3515.4,2.84461]
[1719799513125,4.0874466,3516.2,3515.4,2.84461]
[1719799514536,4.0874466,3516.2,3515.5,2.84453]
[1719799514741,7.04341,3516.9,3515.8,2.84428]
[1719799515094,2.84357,3516.7,3515.5,10.1645]
[1719799515366,2.84357,3516.7,3515.6,2.84445]
[1719799515565,2.84357,3516.7,3515.7,2.84434]
[1719799515783,0.988698,3516.6,3515.8,2.84429]
[1719799516160,0.988698,3516.6,3515.9,2.84422]
[1719799516494,0.988698,3516.6,3516.0,2.84411]
[1719799517685,0.988698,3516.6,3516.1,2.84405]
[1719799517891,3.0,3516.8,3516.1,2.84405]
[1719799518100,4.2,3516.9,3515.8,0.056881]
[1719799518300,7.02315,3517.4,3516.4,2.8438]
[1719799518483,0.986599,3517.3,3516.2,2.84393]
[1719799519358,3.986599,3517.3,3516.2,2.84393]
[1719799519595,3.986599,3517.3,3516.3,2.84388]
[1719799520295,3.986599,3517.3,3516.1,2.84405]
[1719799520296,4.1801,3517.4,3516.8,2.84343]
[1719799520602,2.84253,3518.0,3517.0,2.84333]
[1719799520603,4.5428,3517.9,3517.0,2.84333]
[1719799521395,4.5428,3517.9,3517.1,2.84322]
[1719799521622,0.45428,3517.8,3517.1,2.84322]
[1719799521765,0.45428,3517.8,3516.9,2.84339]
[1719799522121,0.45428,3517.8,3517.0,2.84325]
[1719799522393,0.45428,3517.8,3517.3,2.84307]
[1719799522600,3.0,3518.1,3517.3,2.84307]
[1719799523105,3.0,3518.2,3517.3,2.84307]
[1719799523922,3.0,3518.2,3517.1,2.84325]
[1719799524142,3.0,3518.2,3517.2,2.84316]
[1719799524341,3.0,3518.2,3517.3,2.84307]
[1719799524511,0.7191,3518.1,3517.3,2.84307]
[1719799526952,0.7191,3518.1,3516.3,4.2723]
[1719799526953,2.84258,3518.0,3516.3,4.2723]
[1719799527362,2.84258,3518.0,3516.7,2.84353]
[1719799527363,2.84275,3517.8,3516.7,2.84353]
[1719799527567,2.018,3517.8,3516.1,10.16397]
[1719799527867,2.018,3517.8,3516.2,2.84397]
[1719799527868,7.32263,3517.2,3516.2,2.84397]
[1719799529239,4.4794,3517.2,3516.4,2.84374]
[1719799530627,10.17787,3517.7,3516.7,2.84355]
[1719799530829,10.17787,3517.7,3516.1,7.32]
[1719799530830,4.3351,3517.7,3516.3,2.84388]
[1719799531089,3.717771,3517.6,3516.5,2.84367]
[1719799531370,0.717771,3517.6,3516.6,2.84363]
[1719799531552,0.717771,3517.6,3516.2,4.86197]
[1719799531553,0.717771,3517.6,3516.7,2.84352]
[1719799531943,0.717771,3517.6,3516.4,2.8438]
[1719799531944,0.717771,3517.6,3516.5,2.84368]
[1719799532784,0.717771,3517.6,3516.7,2.84356]
[1719799533070,0.717771,3517.6,3516.8,2.84347]
[1719799533639,0.717771,3517.6,3516.5,0.05686766]
[1719799533851,0.717771,3517.6,3516.9,2.84335]
[1719799534371,3.0,3518.0,3516.7,0.05686682]
[1719799534540,3.0,3518.1,3517.3,2.84308]
[1719799535067,3.0,3518.1,3517.0,2.84332]
[1719799535068,3.0,3518.1,3517.1,2.8432]
[1719799536241,2.84261,3517.9,3516.8,2.84348]
[1719799536473,2.84261,3517.9,3516.6,6.5395]
[1719799536474,2.84261,3517.9,3516.9,2.84339]
[1719799536677,0.868506,3517.8,3516.9,2.84339]
[1719799538470,2.84284,3517.7,3516.6,2.84363]
[1719799538681,0.868506,3517.8,3516.6,2.84363]
[1719799538829,0.868506,3517.8,3516.8,2.84348]
[1719799539030,0.3711106,3517.7,3516.8,2.84348]
[1719799539468,0.3711106,3517.7,3516.4,2.84377]
[1719799539667,2.84293,3517.5,3516.4,2.84377]
[1719799539829,3.2139206,3517.7,3516.5,2.84371]
[1719799540228,7.36459,3517.3,3516.2,2.018]
[1719799540467,0.736459,3517.2,3516.2,2.84396]
[1719799540831,0.736459,3517.2,3516.3,2.84389]
[1719799541234,0.736459,3517.2,3516.4,2.84381]
[1719799542762,0.736459,3517.2,3516.1,10.16405]
[1719799542763,0.736459,3517.2,3516.1,7.32]
[1719799542983,2.84373,3516.5,3516.1,7.32]
[1719799543561,2.84373,3516.5,3515.5,10.16453]
[1719799544228,2.84362,3516.7,3515.5,10.16453]
[1719799544445,7.04916,3516.8,3515.5,7.32]
[1719799544649,4.425,3516.0,3515.5,7.32]
[1719799544847,4.425,3516.0,3515.1,2.84486]
[1719799545676,4.425,3516.0,3514.9,10.16501]
[1719799546040,4.425,3516.0,3515.0,2.84493]
[1719799547376,4.425,3516.0,3515.1,2.84485]
[1719799547563,0.726908,3515.9,3515.1,2.84485]
[1719799547873,0.726908,3515.9,3515.2,2.84477]
[1719799548278,0.726908,3515.9,3515.0,2.8449]
[1719799548485,0.726908,3515.9,3515.1,2.84484]
[1719799550886,0.726908,3515.9,3515.0,5.68975]
[1719799551087,0.726908,3515.9,3515.0,2.84487]
[1719799551390,0.5151908,3515.8,3514.9,7.32]
[1719799551792,0.5151908,3515.8,3514.9,10.16502]
[1719799551960,2.84439,3515.7,3514.9,7.32]